{"text_format":"1","workbook":"xlsx","n_sheets":3,"sheets":["FORMULAIRE","LISTE CLIENT","SUIVIS"],"not_rendered":{"charts":0,"images":0,"macros":1,"external_links":0,"defined_names":1,"comments":0,"pivot_tables":0},"unopened":[],"bounds":{"document_bytes":16777216,"sheet_cells":100000,"rows_first":2000,"rows_last":500,"rows_between":2000,"halvings":0,"cell_chars":16384,"cell_head_chars":4096},"cells_cut":0,"cells_raw":0,"read":"whole","date_system":"1900"}

{"sheet":"FORMULAIRE","index":0,"n_rows":24,"n_cols":6,"rows_kept":24,"cut":false,"hidden":false,"merged":[]}
[]
[]
[]
[]
[]
[]
[]
[]
[]
[null,null,null,"CLIENT                                   PROSPECT ",null,"PARTICULIER                           PROFESSIONNEL "]
[]
[]
[]
[null,null,null,"RAISON SOCIALE"]
[]
[null,null,null,"N° SIRET"]
[]
[null,null,null,"PRENOM NOM"]
[]
[null,null,null,"ADRESSE"]
[]
[null,null,null,"SUIVIS"]
[]
[null,null,null,null,null,"OK"]

{"sheet":"LISTE CLIENT","index":1,"n_rows":9,"n_cols":9,"rows_kept":9,"cut":false,"hidden":false,"merged":[[1,1,1,4]]}
[]
[null,"FICHIER CLIENT "]
[]
[null,"N°","CLIENT  PROSPECT","PARTICULIER  PROFESSIONNEL ","PRENOM NOM","ADRESSE","RAISON SOCIALE","N° SIRET","Suivis"]
[null,5,"Client","Particulier","Bruno","1 rue de …",0,0,"Oui"]
[null,4,"Client","Particulier","Floflo","1 rue de la mairie",0,0,"Oui"]
[null,3,"Client","Particulier","Laurent","1 rue de lyon ",0,0,"Oui"]
[null,2,"Client","Professionnel","Herve ","1 rue de marseille","ENT",0,"Oui"]
[null,1,"Client ","Particulier","Lionel","1 RUE DE PARIS",null,null,"oui"]

{"sheet":"SUIVIS","index":2,"n_rows":25,"n_cols":7,"rows_kept":25,"cut":false,"hidden":false,"merged":[]}
[]
[]
[]
[null,null,"Nom & Prénom","Adresse","Raison Sociale","N° Siret","Suivis"]
[null,null,{"$f":"IFERROR(INDEX(Tableau5[PRENOM NOM],_xlfn.AGGREGATE(15,6,ROW(Tableau5[Suivis])-ROW(Liste_Clientl_I5)+1/(Tableau5[]=\"oui\"),ROW(1:1))),\"\")","v":"Bruno"},{"$f":"IFERROR(INDEX(Tableau5[ADRESSE],_xlfn.AGGREGATE(15,6,ROW(Tableau5[N°])-ROW(Liste_Clientl_I5)+1/(Tableau5[]=\"oui\"),ROW(1:1))),\"\")","v":"1 rue de …"},{"$f":"IFERROR(INDEX(Tableau5[RAISON SOCIALE],_xlfn.AGGREGATE(15,6,ROW(Tableau5[CLIENT  PROSPECT])-ROW(Liste_Clientl_I5)+1/(Tableau5[]=\"oui\"),ROW(1:1))),\"\")","v":0},{"$f":"IFERROR(INDEX(Tableau5[N° SIRET],_xlfn.AGGREGATE(15,6,ROW(Tableau5[[PARTICULIER  PROFESSIONNEL ]])-ROW(Liste_Clientl_I5)+1/(Tableau5[]=\"oui\"),ROW(1:1))),\"\")","v":0},{"$f":"IFERROR(INDEX(Tableau5[Suivis],_xlfn.AGGREGATE(15,6,ROW(Tableau5[PRENOM NOM])-ROW(Liste_Clientl_I5)+1/(Tableau5[]=\"oui\"),ROW(1:1))),\"\")","v":"Oui"}]
[null,null,{"$f":"IFERROR(INDEX(Tableau5[PRENOM NOM],_xlfn.AGGREGATE(15,6,ROW(Tableau5[Suivis])-ROW(Liste_Clientl_I5)+1/(Tableau5[]=\"oui\"),ROW(2:2))),\"\")","v":"Floflo"},{"$f":"IFERROR(INDEX(Tableau5[ADRESSE],_xlfn.AGGREGATE(15,6,ROW(Tableau5[N°])-ROW(Liste_Clientl_I5)+1/(Tableau5[]=\"oui\"),ROW(2:2))),\"\")","v":"1 rue de la mairie"},{"$f":"IFERROR(INDEX(Tableau5[RAISON SOCIALE],_xlfn.AGGREGATE(15,6,ROW(Tableau5[CLIENT  PROSPECT])-ROW(Liste_Clientl_I5)+1/(Tableau5[]=\"oui\"),ROW(2:2))),\"\")","v":0},{"$f":"IFERROR(INDEX(Tableau5[N° SIRET],_xlfn.AGGREGATE(15,6,ROW(Tableau5[[PARTICULIER  PROFESSIONNEL ]])-ROW(Liste_Clientl_I5)+1/(Tableau5[]=\"oui\"),ROW(2:2))),\"\")","v":0},{"$f":"IFERROR(INDEX(Tableau5[Suivis],_xlfn.AGGREGATE(15,6,ROW(Tableau5[PRENOM NOM])-ROW(Liste_Clientl_I5)+1/(Tableau5[]=\"oui\"),ROW(2:2))),\"\")","v":"Oui"}]
[null,null,{"$f":"IFERROR(INDEX(Tableau5[PRENOM NOM],_xlfn.AGGREGATE(15,6,ROW(Tableau5[Suivis])-ROW(Liste_Clientl_I5)+1/(Tableau5[]=\"oui\"),ROW(3:3))),\"\")","v":"Laurent"},{"$f":"IFERROR(INDEX(Tableau5[ADRESSE],_xlfn.AGGREGATE(15,6,ROW(Tableau5[N°])-ROW(Liste_Clientl_I5)+1/(Tableau5[]=\"oui\"),ROW(3:3))),\"\")","v":"1 rue de lyon "},{"$f":"IFERROR(INDEX(Tableau5[RAISON SOCIALE],_xlfn.AGGREGATE(15,6,ROW(Tableau5[CLIENT  PROSPECT])-ROW(Liste_Clientl_I5)+1/(Tableau5[]=\"oui\"),ROW(3:3))),\"\")","v":0},{"$f":"IFERROR(INDEX(Tableau5[N° SIRET],_xlfn.AGGREGATE(15,6,ROW(Tableau5[[PARTICULIER  PROFESSIONNEL ]])-ROW(Liste_Clientl_I5)+1/(Tableau5[]=\"oui\"),ROW(3:3))),\"\")","v":0},{"$f":"IFERROR(INDEX(Tableau5[Suivis],_xlfn.AGGREGATE(15,6,ROW(Tableau5[PRENOM NOM])-ROW(Liste_Clientl_I5)+1/(Tableau5[]=\"oui\"),ROW(3:3))),\"\")","v":"Oui"}]
[null,null,{"$f":"IFERROR(INDEX(Tableau5[PRENOM NOM],_xlfn.AGGREGATE(15,6,ROW(Tableau5[Suivis])-ROW(Liste_Clientl_I5)+1/(Tableau5[]=\"oui\"),ROW(4:4))),\"\")","v":"Herve "},{"$f":"IFERROR(INDEX(Tableau5[ADRESSE],_xlfn.AGGREGATE(15,6,ROW(Tableau5[N°])-ROW(Liste_Clientl_I5)+1/(Tableau5[]=\"oui\"),ROW(4:4))),\"\")","v":"1 rue de marseille"},{"$f":"IFERROR(INDEX(Tableau5[RAISON SOCIALE],_xlfn.AGGREGATE(15,6,ROW(Tableau5[CLIENT  PROSPECT])-ROW(Liste_Clientl_I5)+1/(Tableau5[]=\"oui\"),ROW(4:4))),\"\")","v":"ENT"},{"$f":"IFERROR(INDEX(Tableau5[N° SIRET],_xlfn.AGGREGATE(15,6,ROW(Tableau5[[PARTICULIER  PROFESSIONNEL ]])-ROW(Liste_Clientl_I5)+1/(Tableau5[]=\"oui\"),ROW(4:4))),\"\")","v":0},{"$f":"IFERROR(INDEX(Tableau5[Suivis],_xlfn.AGGREGATE(15,6,ROW(Tableau5[PRENOM NOM])-ROW(Liste_Clientl_I5)+1/(Tableau5[]=\"oui\"),ROW(4:4))),\"\")","v":"Oui"}]
[null,null,{"$f":"IFERROR(INDEX(Tableau5[PRENOM NOM],_xlfn.AGGREGATE(15,6,ROW(Tableau5[Suivis])-ROW(Liste_Clientl_I5)+1/(Tableau5[]=\"oui\"),ROW(5:5))),\"\")","v":"Lionel"},{"$f":"IFERROR(INDEX(Tableau5[ADRESSE],_xlfn.AGGREGATE(15,6,ROW(Tableau5[N°])-ROW(Liste_Clientl_I5)+1/(Tableau5[]=\"oui\"),ROW(5:5))),\"\")","v":"1 RUE DE PARIS"},{"$f":"IFERROR(INDEX(Tableau5[RAISON SOCIALE],_xlfn.AGGREGATE(15,6,ROW(Tableau5[CLIENT  PROSPECT])-ROW(Liste_Clientl_I5)+1/(Tableau5[]=\"oui\"),ROW(5:5))),\"\")","v":0},{"$f":"IFERROR(INDEX(Tableau5[N° SIRET],_xlfn.AGGREGATE(15,6,ROW(Tableau5[[PARTICULIER  PROFESSIONNEL ]])-ROW(Liste_Clientl_I5)+1/(Tableau5[]=\"oui\"),ROW(5:5))),\"\")","v":0},{"$f":"IFERROR(INDEX(Tableau5[Suivis],_xlfn.AGGREGATE(15,6,ROW(Tableau5[PRENOM NOM])-ROW(Liste_Clientl_I5)+1/(Tableau5[]=\"oui\"),ROW(5:5))),\"\")","v":"oui"}]
[null,null,{"$f":"IFERROR(INDEX(Tableau5[PRENOM NOM],_xlfn.AGGREGATE(15,6,ROW(Tableau5[Suivis])-ROW(Liste_Clientl_I5)+1/(Tableau5[]=\"oui\"),ROW(6:6))),\"\")","v":""},{"$f":"IFERROR(INDEX(Tableau5[ADRESSE],_xlfn.AGGREGATE(15,6,ROW(Tableau5[N°])-ROW(Liste_Clientl_I5)+1/(Tableau5[]=\"oui\"),ROW(6:6))),\"\")","v":""},{"$f":"IFERROR(INDEX(Tableau5[RAISON SOCIALE],_xlfn.AGGREGATE(15,6,ROW(Tableau5[CLIENT  PROSPECT])-ROW(Liste_Clientl_I5)+1/(Tableau5[]=\"oui\"),ROW(6:6))),\"\")","v":""},{"$f":"IFERROR(INDEX(Tableau5[N° SIRET],_xlfn.AGGREGATE(15,6,ROW(Tableau5[[PARTICULIER  PROFESSIONNEL ]])-ROW(Liste_Clientl_I5)+1/(Tableau5[]=\"oui\"),ROW(6:6))),\"\")","v":""},{"$f":"IFERROR(INDEX(Tableau5[Suivis],_xlfn.AGGREGATE(15,6,ROW(Tableau5[PRENOM NOM])-ROW(Liste_Clientl_I5)+1/(Tableau5[]=\"oui\"),ROW(6:6))),\"\")","v":""}]
[null,null,{"$f":"IFERROR(INDEX(Tableau5[PRENOM NOM],_xlfn.AGGREGATE(15,6,ROW(Tableau5[Suivis])-ROW(Liste_Clientl_I5)+1/(Tableau5[]=\"oui\"),ROW(7:7))),\"\")","v":""},{"$f":"IFERROR(INDEX(Tableau5[ADRESSE],_xlfn.AGGREGATE(15,6,ROW(Tableau5[N°])-ROW(Liste_Clientl_I5)+1/(Tableau5[]=\"oui\"),ROW(7:7))),\"\")","v":""},{"$f":"IFERROR(INDEX(Tableau5[RAISON SOCIALE],_xlfn.AGGREGATE(15,6,ROW(Tableau5[CLIENT  PROSPECT])-ROW(Liste_Clientl_I5)+1/(Tableau5[]=\"oui\"),ROW(7:7))),\"\")","v":""},{"$f":"IFERROR(INDEX(Tableau5[N° SIRET],_xlfn.AGGREGATE(15,6,ROW(Tableau5[[PARTICULIER  PROFESSIONNEL ]])-ROW(Liste_Clientl_I5)+1/(Tableau5[]=\"oui\"),ROW(7:7))),\"\")","v":""},{"$f":"IFERROR(INDEX(Tableau5[Suivis],_xlfn.AGGREGATE(15,6,ROW(Tableau5[PRENOM NOM])-ROW(Liste_Clientl_I5)+1/(Tableau5[]=\"oui\"),ROW(7:7))),\"\")","v":""}]
[null,null,{"$f":"IFERROR(INDEX(Tableau5[PRENOM NOM],_xlfn.AGGREGATE(15,6,ROW(Tableau5[Suivis])-ROW(Liste_Clientl_I5)+1/(Tableau5[]=\"oui\"),ROW(8:8))),\"\")","v":""},{"$f":"IFERROR(INDEX(Tableau5[ADRESSE],_xlfn.AGGREGATE(15,6,ROW(Tableau5[N°])-ROW(Liste_Clientl_I5)+1/(Tableau5[]=\"oui\"),ROW(8:8))),\"\")","v":""},{"$f":"IFERROR(INDEX(Tableau5[RAISON SOCIALE],_xlfn.AGGREGATE(15,6,ROW(Tableau5[CLIENT  PROSPECT])-ROW(Liste_Clientl_I5)+1/(Tableau5[]=\"oui\"),ROW(8:8))),\"\")","v":""},{"$f":"IFERROR(INDEX(Tableau5[N° SIRET],_xlfn.AGGREGATE(15,6,ROW(Tableau5[[PARTICULIER  PROFESSIONNEL ]])-ROW(Liste_Clientl_I5)+1/(Tableau5[]=\"oui\"),ROW(8:8))),\"\")","v":""},{"$f":"IFERROR(INDEX(Tableau5[Suivis],_xlfn.AGGREGATE(15,6,ROW(Tableau5[PRENOM NOM])-ROW(Liste_Clientl_I5)+1/(Tableau5[]=\"oui\"),ROW(8:8))),\"\")","v":""}]
[null,null,{"$f":"IFERROR(INDEX(Tableau5[PRENOM NOM],_xlfn.AGGREGATE(15,6,ROW(Tableau5[Suivis])-ROW(Liste_Clientl_I5)+1/(Tableau5[]=\"oui\"),ROW(9:9))),\"\")","v":""},{"$f":"IFERROR(INDEX(Tableau5[ADRESSE],_xlfn.AGGREGATE(15,6,ROW(Tableau5[N°])-ROW(Liste_Clientl_I5)+1/(Tableau5[]=\"oui\"),ROW(9:9))),\"\")","v":""},{"$f":"IFERROR(INDEX(Tableau5[RAISON SOCIALE],_xlfn.AGGREGATE(15,6,ROW(Tableau5[CLIENT  PROSPECT])-ROW(Liste_Clientl_I5)+1/(Tableau5[]=\"oui\"),ROW(9:9))),\"\")","v":""},{"$f":"IFERROR(INDEX(Tableau5[N° SIRET],_xlfn.AGGREGATE(15,6,ROW(Tableau5[[PARTICULIER  PROFESSIONNEL ]])-ROW(Liste_Clientl_I5)+1/(Tableau5[]=\"oui\"),ROW(9:9))),\"\")","v":""},{"$f":"IFERROR(INDEX(Tableau5[Suivis],_xlfn.AGGREGATE(15,6,ROW(Tableau5[PRENOM NOM])-ROW(Liste_Clientl_I5)+1/(Tableau5[]=\"oui\"),ROW(9:9))),\"\")","v":""}]
[null,null,{"$f":"IFERROR(INDEX(Tableau5[PRENOM NOM],_xlfn.AGGREGATE(15,6,ROW(Tableau5[Suivis])-ROW(Liste_Clientl_I5)+1/(Tableau5[]=\"oui\"),ROW(10:10))),\"\")","v":""},{"$f":"IFERROR(INDEX(Tableau5[ADRESSE],_xlfn.AGGREGATE(15,6,ROW(Tableau5[N°])-ROW(Liste_Clientl_I5)+1/(Tableau5[]=\"oui\"),ROW(10:10))),\"\")","v":""},{"$f":"IFERROR(INDEX(Tableau5[RAISON SOCIALE],_xlfn.AGGREGATE(15,6,ROW(Tableau5[CLIENT  PROSPECT])-ROW(Liste_Clientl_I5)+1/(Tableau5[]=\"oui\"),ROW(10:10))),\"\")","v":""},{"$f":"IFERROR(INDEX(Tableau5[N° SIRET],_xlfn.AGGREGATE(15,6,ROW(Tableau5[[PARTICULIER  PROFESSIONNEL ]])-ROW(Liste_Clientl_I5)+1/(Tableau5[]=\"oui\"),ROW(10:10))),\"\")","v":""},{"$f":"IFERROR(INDEX(Tableau5[Suivis],_xlfn.AGGREGATE(15,6,ROW(Tableau5[PRENOM NOM])-ROW(Liste_Clientl_I5)+1/(Tableau5[]=\"oui\"),ROW(10:10))),\"\")","v":""}]
[null,null,{"$f":"IFERROR(INDEX(Tableau5[PRENOM NOM],_xlfn.AGGREGATE(15,6,ROW(Tableau5[Suivis])-ROW(Liste_Clientl_I5)+1/(Tableau5[]=\"oui\"),ROW(11:11))),\"\")","v":""},{"$f":"IFERROR(INDEX(Tableau5[ADRESSE],_xlfn.AGGREGATE(15,6,ROW(Tableau5[N°])-ROW(Liste_Clientl_I5)+1/(Tableau5[]=\"oui\"),ROW(11:11))),\"\")","v":""},{"$f":"IFERROR(INDEX(Tableau5[RAISON SOCIALE],_xlfn.AGGREGATE(15,6,ROW(Tableau5[CLIENT  PROSPECT])-ROW(Liste_Clientl_I5)+1/(Tableau5[]=\"oui\"),ROW(11:11))),\"\")","v":""},{"$f":"IFERROR(INDEX(Tableau5[N° SIRET],_xlfn.AGGREGATE(15,6,ROW(Tableau5[[PARTICULIER  PROFESSIONNEL ]])-ROW(Liste_Clientl_I5)+1/(Tableau5[]=\"oui\"),ROW(11:11))),\"\")","v":""},{"$f":"IFERROR(INDEX(Tableau5[Suivis],_xlfn.AGGREGATE(15,6,ROW(Tableau5[PRENOM NOM])-ROW(Liste_Clientl_I5)+1/(Tableau5[]=\"oui\"),ROW(11:11))),\"\")","v":""}]
[null,null,{"$f":"IFERROR(INDEX(Tableau5[PRENOM NOM],_xlfn.AGGREGATE(15,6,ROW(Tableau5[Suivis])-ROW(Liste_Clientl_I5)+1/(Tableau5[]=\"oui\"),ROW(12:12))),\"\")","v":""},{"$f":"IFERROR(INDEX(Tableau5[ADRESSE],_xlfn.AGGREGATE(15,6,ROW(Tableau5[N°])-ROW(Liste_Clientl_I5)+1/(Tableau5[]=\"oui\"),ROW(12:12))),\"\")","v":""},{"$f":"IFERROR(INDEX(Tableau5[RAISON SOCIALE],_xlfn.AGGREGATE(15,6,ROW(Tableau5[CLIENT  PROSPECT])-ROW(Liste_Clientl_I5)+1/(Tableau5[]=\"oui\"),ROW(12:12))),\"\")","v":""},{"$f":"IFERROR(INDEX(Tableau5[N° SIRET],_xlfn.AGGREGATE(15,6,ROW(Tableau5[[PARTICULIER  PROFESSIONNEL ]])-ROW(Liste_Clientl_I5)+1/(Tableau5[]=\"oui\"),ROW(12:12))),\"\")","v":""},{"$f":"IFERROR(INDEX(Tableau5[Suivis],_xlfn.AGGREGATE(15,6,ROW(Tableau5[PRENOM NOM])-ROW(Liste_Clientl_I5)+1/(Tableau5[]=\"oui\"),ROW(12:12))),\"\")","v":""}]
[null,null,{"$f":"IFERROR(INDEX(Tableau5[PRENOM NOM],_xlfn.AGGREGATE(15,6,ROW(Tableau5[Suivis])-ROW(Liste_Clientl_I5)+1/(Tableau5[]=\"oui\"),ROW(13:13))),\"\")","v":""},{"$f":"IFERROR(INDEX(Tableau5[ADRESSE],_xlfn.AGGREGATE(15,6,ROW(Tableau5[N°])-ROW(Liste_Clientl_I5)+1/(Tableau5[]=\"oui\"),ROW(13:13))),\"\")","v":""},{"$f":"IFERROR(INDEX(Tableau5[RAISON SOCIALE],_xlfn.AGGREGATE(15,6,ROW(Tableau5[CLIENT  PROSPECT])-ROW(Liste_Clientl_I5)+1/(Tableau5[]=\"oui\"),ROW(13:13))),\"\")","v":""},{"$f":"IFERROR(INDEX(Tableau5[N° SIRET],_xlfn.AGGREGATE(15,6,ROW(Tableau5[[PARTICULIER  PROFESSIONNEL ]])-ROW(Liste_Clientl_I5)+1/(Tableau5[]=\"oui\"),ROW(13:13))),\"\")","v":""},{"$f":"IFERROR(INDEX(Tableau5[Suivis],_xlfn.AGGREGATE(15,6,ROW(Tableau5[PRENOM NOM])-ROW(Liste_Clientl_I5)+1/(Tableau5[]=\"oui\"),ROW(13:13))),\"\")","v":""}]
[null,null,{"$f":"IFERROR(INDEX(Tableau5[PRENOM NOM],_xlfn.AGGREGATE(15,6,ROW(Tableau5[Suivis])-ROW(Liste_Clientl_I5)+1/(Tableau5[]=\"oui\"),ROW(14:14))),\"\")","v":""},{"$f":"IFERROR(INDEX(Tableau5[ADRESSE],_xlfn.AGGREGATE(15,6,ROW(Tableau5[N°])-ROW(Liste_Clientl_I5)+1/(Tableau5[]=\"oui\"),ROW(14:14))),\"\")","v":""},{"$f":"IFERROR(INDEX(Tableau5[RAISON SOCIALE],_xlfn.AGGREGATE(15,6,ROW(Tableau5[CLIENT  PROSPECT])-ROW(Liste_Clientl_I5)+1/(Tableau5[]=\"oui\"),ROW(14:14))),\"\")","v":""},{"$f":"IFERROR(INDEX(Tableau5[N° SIRET],_xlfn.AGGREGATE(15,6,ROW(Tableau5[[PARTICULIER  PROFESSIONNEL ]])-ROW(Liste_Clientl_I5)+1/(Tableau5[]=\"oui\"),ROW(14:14))),\"\")","v":""},{"$f":"IFERROR(INDEX(Tableau5[Suivis],_xlfn.AGGREGATE(15,6,ROW(Tableau5[PRENOM NOM])-ROW(Liste_Clientl_I5)+1/(Tableau5[]=\"oui\"),ROW(14:14))),\"\")","v":""}]
[null,null,{"$f":"IFERROR(INDEX(Tableau5[PRENOM NOM],_xlfn.AGGREGATE(15,6,ROW(Tableau5[Suivis])-ROW(Liste_Clientl_I5)+1/(Tableau5[]=\"oui\"),ROW(15:15))),\"\")","v":""},{"$f":"IFERROR(INDEX(Tableau5[ADRESSE],_xlfn.AGGREGATE(15,6,ROW(Tableau5[N°])-ROW(Liste_Clientl_I5)+1/(Tableau5[]=\"oui\"),ROW(15:15))),\"\")","v":""},{"$f":"IFERROR(INDEX(Tableau5[RAISON SOCIALE],_xlfn.AGGREGATE(15,6,ROW(Tableau5[CLIENT  PROSPECT])-ROW(Liste_Clientl_I5)+1/(Tableau5[]=\"oui\"),ROW(15:15))),\"\")","v":""},{"$f":"IFERROR(INDEX(Tableau5[N° SIRET],_xlfn.AGGREGATE(15,6,ROW(Tableau5[[PARTICULIER  PROFESSIONNEL ]])-ROW(Liste_Clientl_I5)+1/(Tableau5[]=\"oui\"),ROW(15:15))),\"\")","v":""},{"$f":"IFERROR(INDEX(Tableau5[Suivis],_xlfn.AGGREGATE(15,6,ROW(Tableau5[PRENOM NOM])-ROW(Liste_Clientl_I5)+1/(Tableau5[]=\"oui\"),ROW(15:15))),\"\")","v":""}]
[null,null,{"$f":"IFERROR(INDEX(Tableau5[PRENOM NOM],_xlfn.AGGREGATE(15,6,ROW(Tableau5[Suivis])-ROW(Liste_Clientl_I5)+1/(Tableau5[]=\"oui\"),ROW(16:16))),\"\")","v":""},{"$f":"IFERROR(INDEX(Tableau5[ADRESSE],_xlfn.AGGREGATE(15,6,ROW(Tableau5[N°])-ROW(Liste_Clientl_I5)+1/(Tableau5[]=\"oui\"),ROW(16:16))),\"\")","v":""},{"$f":"IFERROR(INDEX(Tableau5[RAISON SOCIALE],_xlfn.AGGREGATE(15,6,ROW(Tableau5[CLIENT  PROSPECT])-ROW(Liste_Clientl_I5)+1/(Tableau5[]=\"oui\"),ROW(16:16))),\"\")","v":""},{"$f":"IFERROR(INDEX(Tableau5[N° SIRET],_xlfn.AGGREGATE(15,6,ROW(Tableau5[[PARTICULIER  PROFESSIONNEL ]])-ROW(Liste_Clientl_I5)+1/(Tableau5[]=\"oui\"),ROW(16:16))),\"\")","v":""},{"$f":"IFERROR(INDEX(Tableau5[Suivis],_xlfn.AGGREGATE(15,6,ROW(Tableau5[PRENOM NOM])-ROW(Liste_Clientl_I5)+1/(Tableau5[]=\"oui\"),ROW(16:16))),\"\")","v":""}]
[null,null,{"$f":"IFERROR(INDEX(Tableau5[PRENOM NOM],_xlfn.AGGREGATE(15,6,ROW(Tableau5[Suivis])-ROW(Liste_Clientl_I5)+1/(Tableau5[]=\"oui\"),ROW(17:17))),\"\")","v":""},{"$f":"IFERROR(INDEX(Tableau5[ADRESSE],_xlfn.AGGREGATE(15,6,ROW(Tableau5[N°])-ROW(Liste_Clientl_I5)+1/(Tableau5[]=\"oui\"),ROW(17:17))),\"\")","v":""},{"$f":"IFERROR(INDEX(Tableau5[RAISON SOCIALE],_xlfn.AGGREGATE(15,6,ROW(Tableau5[CLIENT  PROSPECT])-ROW(Liste_Clientl_I5)+1/(Tableau5[]=\"oui\"),ROW(17:17))),\"\")","v":""},{"$f":"IFERROR(INDEX(Tableau5[N° SIRET],_xlfn.AGGREGATE(15,6,ROW(Tableau5[[PARTICULIER  PROFESSIONNEL ]])-ROW(Liste_Clientl_I5)+1/(Tableau5[]=\"oui\"),ROW(17:17))),\"\")","v":""},{"$f":"IFERROR(INDEX(Tableau5[Suivis],_xlfn.AGGREGATE(15,6,ROW(Tableau5[PRENOM NOM])-ROW(Liste_Clientl_I5)+1/(Tableau5[]=\"oui\"),ROW(17:17))),\"\")","v":""}]
[null,null,{"$f":"IFERROR(INDEX(Tableau5[PRENOM NOM],_xlfn.AGGREGATE(15,6,ROW(Tableau5[Suivis])-ROW(Liste_Clientl_I5)+1/(Tableau5[]=\"oui\"),ROW(18:18))),\"\")","v":""},{"$f":"IFERROR(INDEX(Tableau5[ADRESSE],_xlfn.AGGREGATE(15,6,ROW(Tableau5[N°])-ROW(Liste_Clientl_I5)+1/(Tableau5[]=\"oui\"),ROW(18:18))),\"\")","v":""},{"$f":"IFERROR(INDEX(Tableau5[RAISON SOCIALE],_xlfn.AGGREGATE(15,6,ROW(Tableau5[CLIENT  PROSPECT])-ROW(Liste_Clientl_I5)+1/(Tableau5[]=\"oui\"),ROW(18:18))),\"\")","v":""},{"$f":"IFERROR(INDEX(Tableau5[N° SIRET],_xlfn.AGGREGATE(15,6,ROW(Tableau5[[PARTICULIER  PROFESSIONNEL ]])-ROW(Liste_Clientl_I5)+1/(Tableau5[]=\"oui\"),ROW(18:18))),\"\")","v":""},{"$f":"IFERROR(INDEX(Tableau5[Suivis],_xlfn.AGGREGATE(15,6,ROW(Tableau5[PRENOM NOM])-ROW(Liste_Clientl_I5)+1/(Tableau5[]=\"oui\"),ROW(18:18))),\"\")","v":""}]
[null,null,{"$f":"IFERROR(INDEX(Tableau5[PRENOM NOM],_xlfn.AGGREGATE(15,6,ROW(Tableau5[Suivis])-ROW(Liste_Clientl_I5)+1/(Tableau5[]=\"oui\"),ROW(19:19))),\"\")","v":""},{"$f":"IFERROR(INDEX(Tableau5[ADRESSE],_xlfn.AGGREGATE(15,6,ROW(Tableau5[N°])-ROW(Liste_Clientl_I5)+1/(Tableau5[]=\"oui\"),ROW(19:19))),\"\")","v":""},{"$f":"IFERROR(INDEX(Tableau5[RAISON SOCIALE],_xlfn.AGGREGATE(15,6,ROW(Tableau5[CLIENT  PROSPECT])-ROW(Liste_Clientl_I5)+1/(Tableau5[]=\"oui\"),ROW(19:19))),\"\")","v":""},{"$f":"IFERROR(INDEX(Tableau5[N° SIRET],_xlfn.AGGREGATE(15,6,ROW(Tableau5[[PARTICULIER  PROFESSIONNEL ]])-ROW(Liste_Clientl_I5)+1/(Tableau5[]=\"oui\"),ROW(19:19))),\"\")","v":""},{"$f":"IFERROR(INDEX(Tableau5[Suivis],_xlfn.AGGREGATE(15,6,ROW(Tableau5[PRENOM NOM])-ROW(Liste_Clientl_I5)+1/(Tableau5[]=\"oui\"),ROW(19:19))),\"\")","v":""}]
[null,null,{"$f":"IFERROR(INDEX(Tableau5[PRENOM NOM],_xlfn.AGGREGATE(15,6,ROW(Tableau5[Suivis])-ROW(Liste_Clientl_I5)+1/(Tableau5[]=\"oui\"),ROW(20:20))),\"\")","v":""},{"$f":"IFERROR(INDEX(Tableau5[ADRESSE],_xlfn.AGGREGATE(15,6,ROW(Tableau5[N°])-ROW(Liste_Clientl_I5)+1/(Tableau5[]=\"oui\"),ROW(20:20))),\"\")","v":""},{"$f":"IFERROR(INDEX(Tableau5[RAISON SOCIALE],_xlfn.AGGREGATE(15,6,ROW(Tableau5[CLIENT  PROSPECT])-ROW(Liste_Clientl_I5)+1/(Tableau5[]=\"oui\"),ROW(20:20))),\"\")","v":""},{"$f":"IFERROR(INDEX(Tableau5[N° SIRET],_xlfn.AGGREGATE(15,6,ROW(Tableau5[[PARTICULIER  PROFESSIONNEL ]])-ROW(Liste_Clientl_I5)+1/(Tableau5[]=\"oui\"),ROW(20:20))),\"\")","v":""},{"$f":"IFERROR(INDEX(Tableau5[Suivis],_xlfn.AGGREGATE(15,6,ROW(Tableau5[PRENOM NOM])-ROW(Liste_Clientl_I5)+1/(Tableau5[]=\"oui\"),ROW(20:20))),\"\")","v":""}]
[null,null,{"$f":"IFERROR(INDEX(Tableau5[PRENOM NOM],_xlfn.AGGREGATE(15,6,ROW(Tableau5[Suivis])-ROW(Liste_Clientl_I5)+1/(Tableau5[]=\"oui\"),ROW(21:21))),\"\")","v":""},{"$f":"IFERROR(INDEX(Tableau5[ADRESSE],_xlfn.AGGREGATE(15,6,ROW(Tableau5[N°])-ROW(Liste_Clientl_I5)+1/(Tableau5[]=\"oui\"),ROW(21:21))),\"\")","v":""},{"$f":"IFERROR(INDEX(Tableau5[RAISON SOCIALE],_xlfn.AGGREGATE(15,6,ROW(Tableau5[CLIENT  PROSPECT])-ROW(Liste_Clientl_I5)+1/(Tableau5[]=\"oui\"),ROW(21:21))),\"\")","v":""},{"$f":"IFERROR(INDEX(Tableau5[N° SIRET],_xlfn.AGGREGATE(15,6,ROW(Tableau5[[PARTICULIER  PROFESSIONNEL ]])-ROW(Liste_Clientl_I5)+1/(Tableau5[]=\"oui\"),ROW(21:21))),\"\")","v":""},{"$f":"IFERROR(INDEX(Tableau5[Suivis],_xlfn.AGGREGATE(15,6,ROW(Tableau5[PRENOM NOM])-ROW(Liste_Clientl_I5)+1/(Tableau5[]=\"oui\"),ROW(21:21))),\"\")","v":""}]